Cogmind - Beta 15 @@@ ROGUE MODE // 2025.07.25 @ 22:34:13 Player: ToBeDefined Result: Destroyed by Y-54 Guardian with Gatling Laser Performance ------------- Evolutions (4) 2000 Regions Visited (5) 1000 Robots Destroyed (77) 385 Value Destroyed (2673) 2673 Prototype IDs (6) 120 Alien Tech Used (0) 0 Bonus (36) 36 TOTAL SCORE: 6214 Bonus ------- High Alert Combat Kills 87 Friendly Fire -51 Cogmind --------- Core Integrity 0/850 Matter 179/300 Energy 100/100 System Corruption 7% Temperature Cool (12) Movement Core (350) Ox6 Location -6/Factory Parts ------- > --- POWER (1) -------- (None) > --- PROPULSION (4) --- (None) > --- UTILITY (6) ------ Large Storage Unit Improved Signal Interpreter > --- WEAPON (4) ------- (None) > --- INVENTORY (15) --- Light Angular Momentum Engine Huge Storage Unit Matter Compressor (250) Improved Signal Interpreter Heavy Reactive Plating Recalibrator Improved Spread Laser Thermic Laser Phase Cannon Heavy Machine Gun Peak State ------------ > --- POWER ------------ Light Angular Momentum Engine > --- PROPULSION ------- Improved Medium Treads Improved Medium Treads Improved Medium Treads Improved Medium Treads > --- UTILITY ---------- Large Storage Unit Improved Sensor Array Improved Signal Interpreter Heavy Reactive Plating Remote Shield > --- WEAPON ----------- Phase Cannon Phase Cannon Phase Cannon Gauss Rifle > --- INVENTORY -------- Fusion Compressor Light Treads Huge Storage Unit Matter Compressor Improved Signal Interpreter Heavy Reactive Plating Recalibrator Improved Spread Laser Thermic Laser Phase Cannon Phase Cannon Heavy Machine Gun Advanced Assault Cannon Improved Proton Missile Launcher [Rating: 72] Favorites ----------- Power Ion Engine Engine Ion Engine Power Core Enhanced Nuclear Core Propulsion Light Treads Treads Light Treads Utility Large Storage Unit Device Improved Cooling System Storage Large Storage Unit Processor Improved Signal Interpreter Protection Improved Light Armor Plating Weapon Advanced Beam Cannon Energy Gun Improved Spread Laser Energy Cannon Advanced Beam Cannon Ballistic Gun Flak Gun Ballistic Cannon Advanced Assault Cannon Launcher Rocket Launcher Build | -11 -10 -10 -8 -7 -6 ------- Run | Yrd Mat Sub Mat Fac Fac Slots Evolved 8 | . . . 4 2 2 Power . | . . . . . . Propulsion 2 | . . . 2 . . Utility 4 | . . . 1 1 2 Weapon 2 | . . . 1 1 . Parts Attached 73 | 6 9 7 9 17 25 Power 11 | 1 1 2 1 2 4 Engine 9 | 1 1 2 1 1 3 Core 2 | . . . . 1 1 Reactor . | . . . . . . Propulsion 15 | 2 1 2 3 1 6 Treads 15 | 2 1 2 3 1 6 Leg . | . . . . . . Wheel . | . . . . . . Hover . | . . . . . . Flight . | . . . . . . Utility 18 | 1 4 1 3 4 5 Device 6 | . 1 . 1 2 2 Storage 4 | 1 1 . . . 2 Processor 1 | . . . . 1 . Hackware . | . . . . . . Protection 7 | . 2 1 2 1 1 Artifact . | . . . . . . Weapon 29 | 2 3 2 2 10 10 Energy Gun 9 | 1 . . . 7 1 Energy Cannon 8 | . 2 . 2 . 4 Ballistic Gun 9 | 1 1 1 . 3 3 Ballistic Cannon 1 | . . . . . 1 Launcher 2 | . . 1 . . 1 Special Weapon . | . . . . . . Impact Weapon . | . . . . . . Slashing Weapon . | . . . . . . Piercing Weapon . | . . . . . . Special Melee Weapon . | . . . . . . Unidentified Prototypes 5 | . 1 . . 4 . Parts Lost 15 | . . . . . 15 Power 1 | . . . . . 1 Propulsion 6 | . . . . . 6 Utility 3 | . . . . . 3 Weapon 5 | . . . . . 5 Highest Loss Streak 8 | . . . . . 8 To Critical Strikes . | . . . . . . Average Backups 13 | 2 11 15 13 14 13 Power 1 | . 1 1 1 . 1 Propulsion 1 | 1 1 1 1 2 1 Utility 6 | . 6 9 8 6 4 Weapon 4 | . 2 3 2 4 6 Tool/Special . | . . . . . . Unused Backups 29 | . 8 3 4 3 11 Power 4 | . . 1 1 . 2 Propulsion 4 | . 2 . 1 . 1 Utility 9 | . 2 . 2 2 3 Weapon 11 | . 3 2 . 1 5 Tool/Special 1 | . 1 . . . . Average Slot Usage (%) 97 | . 99 100 98 99 91 Engine 8 | . 14 14 9 2 5 Core 1 | . . . . 4 . Treads 27 | . 28 28 35 30 25 Device 6 | . . . 8 8 12 Storage 9 | . 14 14 9 7 6 Processor 2 | . . . . . 6 Protection 11 | . 13 14 9 13 7 Energy Gun 6 | . 1 . . 14 10 Energy Cannon 11 | . 23 10 14 5 4 Ballistic Gun 6 | . 2 6 9 9 8 Launcher 1 | . . 10 2 . . Peak Build Rating 72 | 6 14 17 25 44 72 Average Rating 33 | 5 12 14 22 39 58 On Entrance 17 | . 6 14 16 25 43 Naked Turns . | . . . . . . Heaviest Build 98 | 12 38 38 51 56 98 Greatest Support 120 | 40 40 40 80 80 120 Greatest Overweight (x) 1 | . . . . . 1 Average Overweight (x) . | . . . . . . Largest Inventory Capacity 25 | 8 15 15 15 15 25 Average Capacity 14 | 7 12 15 15 15 15 Most Carried 15 | 6 15 15 15 15 15 Average Carried 13 | 2 11 14 13 14 14 Final Capacity 15 | 8 15 15 15 15 15 Final Carried 15 | 6 15 15 15 15 11 Class Distribution -------------------- 46% | Mutant 29% | Tank 20% | Skirmisher 4% | Scavenger-Tank Dominant Class ---------------- Mutant | -10/Materials Mutant | -10/Subcaves Tank | -8/Materials Tank | -7/Factory Skirmisher | -6/Factory Resources | -11 -10 -10 -8 -7 -6 ----------- Run | Yrd Mat Sub Mat Fac Fac Matter Collected 2573 | 219 308 298 182 368 1198 Remotely . | . . . . . . Salvage Created 3395 | 28 450 201 215 509 1992 Parts 166 | 4 28 25 10 22 77 Haulers Intercepted 7 | . 2 . . 4 1 Recyclers Shooed 4 | . . . . . 4 Parts Field Recycled . | . . . . . . Retrieved Matter . | . . . . . . Parts Self-Destructed . | . . . . . . Prevented . | . . . . . . Kills | -11 -10 -10 -8 -7 -6 ------- Run | Yrd Mat Sub Mat Fac Fac Combat Hostiles Destroyed 54 | . 10 9 4 6 25 Guns 19 | . 2 . . 5 12 Cannons 24 | . 8 1 4 . 11 AOE 8 | . . 8 . . . Classes Destroyed 16 | 1 4 2 2 1 6 Worker 2 | . . . . . 2 Builder 5 | . . . . . 5 Tunneler 1 | 1 . . . . . Hauler 7 | . 2 . . 4 1 Recycler 2 | . . . . . 2 Mechanic 1 | . . . . . 1 Operator 1 | . . . . 1 . Watcher 4 | . 2 . . 2 . Swarmer 5 | . 5 . . . . Grunt 26 | . 5 . 2 6 13 Brawler 2 | . . . . . 2 Duelist 3 | . . . 1 . 2 Sentry 5 | . . . 1 . 4 Programmer 4 | . . . . . 4 Artisan 2 | . . 2 . . . Subdweller 9 | . . 9 . . . Best Kill Streak 6 | 1 4 2 3 3 6 Combat Bots Only 4 | . 3 2 3 3 4 Max Kills in Single Turn 2 | 1 1 2 1 1 2 Gunslinging . | . . . . . . Exploded 2 | . . 2 . . . Melee . | . . . . . . Uniques/NPCs Destroyed . | . . . . . . Combat | -11 -10 -10 -8 -7 -6 -------- Run | Yrd Mat Sub Mat Fac Fac Hostile Shots Fired 446 | . 35 19 3 9 380 Missed 128 | . 9 9 1 . 109 Hits 318 | . 26 10 2 9 271 Melee 6 | . . . . . 6 Projectile 312 | . 26 10 2 9 265 Critical Strikes 8 | . 2 . . . 6 Damage Taken 5307 | . 300 331 26 546 4104 Core 1104 | . 51 61 . 138 854 Absorbed by Shields 17 | . . . . . 17 Ignored by Resistances 46 | . . . . . 46 Core Remaining (%) 83 | 100 . 55 100 80 . Volleys Fired 174 | 1 43 20 8 19 83 Largest 4 | 2 2 2 3 4 4 Hottest 283 | 60 136 101 176 260 283 Shots Fired 497 | 2 86 40 24 76 269 Gun 299 | 2 24 7 8 66 192 Cannon 175 | . 62 13 16 10 74 Launcher 23 | . . 20 . . 3 Special . | . . . . . . Kinetic 189 | 1 12 7 8 30 131 Thermal 230 | . 62 13 16 32 107 Explosive 20 | . . 20 . . . Electromagnetic 58 | 1 12 . . 14 31 Robot Hit Streak 16 | 1 10 7 6 11 16 Robot Miss Streak 8 | . 3 1 2 4 8 Penetration Max 2 | . . . . . 2 Secondary Targets 1 | . . . . . 1 Max Gunslinging Chain 1 | . . . . . 1 Shots Hit Robots 309 | 1 52 24 14 48 170 Core Hits 190 | 1 17 16 6 47 103 Critical Kills 3 | . . . . 1 2 Critical Parts Destroyed 2 | . . . 1 . 1 Critical Strikes 6 | . . . 1 1 4 Meltdown 2 | . . . . 1 1 Destroy 3 | . . . 1 . 2 Blast 1 | . . . . . 1 Melee Attacks . | . . . . . . Impact . | . . . . . . Slashing . | . . . . . . Piercing . | . . . . . . Sneak Attacks . | . . . . . . Combat Hostiles . | . . . . . . Follow-up Attacks . | . . . . . . Damage Inflicted 8333 | 13 989 1385 347 1077 4522 Guns 3879 | 13 171 119 62 848 2666 Cannons 2931 | . 818 102 285 108 1618 Explosions 1454 | . . 1164 . 121 169 Melee . | . . . . . . Ramming 69 | . . . . . 69 Kinetic 2188 | . 83 119 62 290 1634 Thermal 4004 | . 818 102 285 539 2260 Explosive 1225 | . . 1164 . 61 . Electromagnetic 847 | 13 88 . . 187 559 Impact . | . . . . . . Slashing . | . . . . . . Piercing . | . . . . . . Highest Corruption 7 | . . . . . 7 Average Corruption 2 | . . . . . 2 Corruption Purged . | . . . . . . Corruption Blocked . | . . . . . . Effects 26 | . . . . . 26 Message Errors 9 | . . . . . 9 Matter Fused 5 | . . . . . 5 Energy Discharges 3 | . . . . . 3 Parts Rejected 1 | . . . . . 1 Data Loss (minor) 3 | . . . . . 3 Data Loss (major) 1 | . . . . . 1 Misfires 1 | . . . . . 1 Weapon Failures 3 | . . . . . 3 Overload Shots . | . . . . . . Overflow Damage 111 | . 23 4 . 25 59 Projectiles 75 | . 23 . . . 52 Explosions 29 | . . 4 . 25 . Melee 7 | . . . . . 7 Knockbacks 2 | . . . . . 2 Impact 1 | . . . . . 1 Kinetic 1 | . . . . . 1 Secondary . | . . . . . . Self-Inflicted Damage 312 | . . 109 . 128 75 Shots 9 | . . 4 . 2 3 Rammed 26 | . . . . . 26 Targets Rammed 26 | . . . . . 26 Kicked . | . . . . . . Crushed . | . . . . . . Highest Temperature 646 | . 583 4 144 222 646 Average Temperature 170 | . 177 3 70 58 196 Received Heat Transfer 1734 | . 126 30 9 81 1488 Effects 40 | . 13 . . . 27 Shutdowns 11 | . 5 . . . 6 Energy Bleed 5 | . 1 . . . 4 Interference 7 | . . . . . 7 Matter Decay 3 | . 2 . . . 1 Short Circuit 2 | . 1 . . . 1 Damage (minor) 6 | . 1 . . . 5 Damage (major) 4 | . 2 . . . 2 Damage (core) 2 | . 1 . . . 1 Siege Activations . | . . . . . . Martial Activations . | . . . . . . Shielding Activations . | . . . . . . Robots Disrupted 1 | . . . . . 1 Combat Hostiles 1 | . . . . . 1 Robots Corrupted 1 | . . . . . 1 Combat Hostiles 1 | . . . . . 1 Parts Fried 3 | . 1 . . 1 1 Impact Corruptions 2 | . . . . . 2 Robots Melted 2 | . . . . 1 1 Combat Hostiles 2 | . . . . 1 1 Parts Melted 7 | . 2 . 1 2 2 Heat Transferred 4865 | . 1480 185 399 536 2265 Parts Sabotaged . | . . . . . . Parts Stolen . | . . . . . . Parts Stripped . | . . . . . . Power Chain Reactions 2 | . . . . 1 1 Alert | -11 -10 -10 -8 -7 -6 ------- Run | Yrd Mat Sub Mat Fac Fac Maximum Alert Level 2 | . . . . . 2 Low Security (%) 85 | 100 100 . 100 100 60 Level 1 6 | . . . . . 18 Level 2 7 | . . . . . 21 Level 3 . | . . . . . . Level 4 . | . . . . . . Level 5 . | . . . . . . High Security . | . . . . . . Max Security . | . . . . . . Peak Influence 486 | 5 70 . 61 78 486 Initial 14 | . . . . 14 . Average 75 | . 11 . 9 15 187 Influence Increases 1541 | 5 306 . 106 258 866 Destroy 0b10 Robot/C 900 | . 200 . 80 120 500 Destroy 0b10 Robot/NC 115 | 5 20 . . 35 55 Destroy Leader 200 | . 48 . 20 20 112 Successful Hack 64 | . 22 . 4 19 19 Disable Machine 90 | . 15 . . 30 45 Destroy Structure 67 | . 1 . 2 34 30 Lose Combat Pursuer 105 | . . . . . 105 Influence Decreases 1156 | 5 279 27 75 289 481 Entered New Map 31 | . . 14 . 17 . Time Decay 975 | 5 279 13 75 272 331 Lost Part 150 | . . . . . 150 Squads Dispatched 20 | . 1 . 6 5 8 Investigation 3 | . . . 1 1 1 Extermination 6 | . . . . 3 3 Reinforcement 3 | . 1 . . 1 1 Assault 4 | . . . 2 . 2 Garrison 4 | . . . 3 . 1 Intercept . | . . . . . . Searches Triggered . | . . . . . . Construction Impeded 1 | . . . . . 1 Haulers Reinforced 1 | . . . . 1 . Active Scanning Responses . | . . . . . . Cargo Convoy Interrupts . | . . . . . . Stealth | -11 -10 -10 -8 -7 -6 --------- Run | Yrd Mat Sub Mat Fac Fac Distress Signals 4 | . 2 . 1 . 1 Communications Jammed . | . . . . . . Distress Signals . | . . . . . . Times Spotted 90 | . 21 9 9 11 40 Peak Tracking Total 10 | . 4 2 4 4 10 Tactical Retreats 4 | . . . . . 4 Traps | -11 -10 -10 -8 -7 -6 ------- Run | Yrd Mat Sub Mat Fac Fac Traps Triggered 4 | . 1 . . . 3 Indirectly . | . . . . . . Trap Hack Attempts . | . . . . . . Triggered . | . . . . . . Disarmed . | . . . . . . Reprogrammed . | . . . . . . Reused . | . . . . . . Traps Extracted . | . . . . . . Installed . | . . . . . . Triggered . | . . . . . . Machines | -11 -10 -10 -8 -7 -6 ---------- Run | Yrd Mat Sub Mat Fac Fac Machines Disabled 6 | . 1 . . 2 3 Max in Single Turn 1 | . 1 . . 1 1 Garrison Access 2 | . . . 1 . 1 Machines Repaired . | . . . . . . Machines Dismantled . | . . . . . . Machines Sabotaged . | . . . . . . Overloaded Fab Kills . | . . . . . . Hacking | -11 -10 -10 -8 -7 -6 --------- Run | Yrd Mat Sub Mat Fac Fac Machines Accessed 25 | . 10 1 1 7 6 Terminals 16 | . 8 . 1 4 3 Fabricators 2 | . . . . 1 1 Repair Stations . | . . . . . . Recycling Units 4 | . 2 . . 1 1 Scanalyzers 2 | . . . . 1 1 Garrison Access . | . . . . . . Total Hacks 57 | . 28 2 6 14 7 Successful 27 | . 13 2 2 6 4 Failed 30 | . 15 . 4 8 3 Catastrophic 7 | . 3 . 2 . 2 Database Lockouts . | . . . . . . Manual . | . . . . . . Terminals 42 | . 25 . 6 7 4 Fabricators 3 | . . . . 2 1 Repair Stations . | . . . . . . Recycling Units 6 | . 3 . . 2 1 Scanalyzers 4 | . . . . 3 1 Garrison Access . | . . . . . . Terminal Hacks 21 | . 12 2 2 1 4 Record 2 | . . 2 . . . Prototype ID Bank 1 | . 1 . . . . Open DSF 2 | . . . . 1 1 Emergency Access Points 1 | . . . 1 . . Terminal Index 1 | . 1 . . . . Repair Station Index 1 | . 1 . . . . Alert Level 4 | . 2 . 1 . 1 Locate Traps 2 | . 2 . . . . Security Status 2 | . 2 . . . . Reinforcement Status 1 | . . . . . 1 Hauler Manifests 1 | . 1 . . . . Zone Layout 3 | . 2 . . . 1 Fabricator Hacks 2 | . . . . 2 . Load Schematic 1 | . . . . 1 . Build 1 | . . . . 1 . Repair Station Hacks . | . . . . . . Recycling Unit Hacks 2 | . 1 . . 1 . Retrieve Components 2 | . 1 . . 1 . Scanalyzer 2 | . . . . 2 . Insert Component 1 | . . . . 1 . Analyze 1 | . . . . 1 . Garrison Access Hacks . | . . . . . . Unauthorized Hacks . | . . . . . . Terminals . | . . . . . . Fabricators . | . . . . . . Repair Stations . | . . . . . . Recycling Units . | . . . . . . Scanalyzers . | . . . . . . Garrison Access . | . . . . . . Data Cores Recovered . | . . . . . . Used . | . . . . . . Hacking Detections 17 | . 8 . 1 5 3 Full Trace Events 2 | . 1 . . 1 . Feedback Events . | . . . . . . Feedback Blocked . | . . . . . . Robot Schematics Acquired . | . . . . . . Robots Built . | . . . . . . Authchips . | . . . . . . Time . | . . . . . . Total Robot Build Rating . | . . . . . . Part Schematics Acquired 1 | . . . . 1 . Parts Built 2 | . . . . 2 . Authchips . | . . . . . . Time 36 | . . . . 36 . Total Part Build Rating 6 | . . . . 6 . Parts Repaired . | . . . . . . Time . | . . . . . . Parts Recycled . | . . . . . . Recycled Matter . | . . . . . . Retrieved Matter . | . . . . . . Retrieved Components 19 | . 9 . . 10 . Parts Scanalyzed 1 | . . . . 1 . Part Schematics Acquired 1 | . . . . 1 . Parts Damaged . | . . . . . . Bothacking | -11 -10 -10 -8 -7 -6 ------------ Run | Yrd Mat Sub Mat Fac Fac Used RIF Installer . | . . . . . . Robots Hacked . | . . . . . . Non-combat . | . . . . . . Combat . | . . . . . . Robot Hacks Applied . | . . . . . . Relay Couplers Released 8 | . . . 1 4 3 Machine Destruction 4 | . . . 1 . 3 Programmers 4 | . . . . 4 . Fabnet Peak Effective % . | . . . . . . Robots Rewired . | . . . . . . Allies Hacked . | . . . . . . Hacks Repelled . | . . . . . . Allies | -11 -10 -10 -8 -7 -6 -------- Run | Yrd Mat Sub Mat Fac Fac Total Allies . | . . . . . . Largest Group . | . . . . . . Highest-Rated Group . | . . . . . . Highest-Rated Ally . | . . . . . . Total Orders . | . . . . . . Ally Attacks . | . . . . . . Total Damage . | . . . . . . Kills . | . . . . . . Allies Corrupted . | . . . . . . Allies Melted . | . . . . . . Intel | -11 -10 -10 -8 -7 -6 ------- Run | Yrd Mat Sub Mat Fac Fac Active Infowar (turns) 2250 | . . . . 187 2063 Sensors 2250 | . . . . 187 2063 Robot Analysis Total . | . . . . . . Derelict Logs Recovered 1 | . . 1 . . . Drone Launches . | . . . . . . Drone Recoveries . | . . . . . . Exploration | -11 -10 -10 -8 -7 -6 ------------- Run | Yrd Mat Sub Mat Fac Fac Turns Passed 7622 | 98 2313 939 340 1502 2430 Spaces Moved 3766 | 52 1109 522 150 810 1123 Core 2 | 2 . . . . . Treads 3764 | 50 1109 522 150 810 1123 Legs . | . . . . . . Wheels . | . . . . . . Hover . | . . . . . . Flight . | . . . . . . Fastest Speed 50 | 50 160 160 160 160 160 Average Speed 160 | 155 160 160 160 160 162 Slowest Speed 240 | 160 160 160 160 160 240 Overloaded Moves . | . . . . . . Propulsion Burnouts . | . . . . . . Robots Hopped . | . . . . . . Potential Cave-ins . | . . . . . . Cave-ins Triggered 2 | . . . . 1 1 Exploration Rate (%) 33 | 4 100 38 16 19 26 Regions Visited 5 Branch Regions 1 Pre-discovered Areas 2 | . . 2 . . . Known Exits Taken 1 | . . . . 1 . Unknown Exits Taken 4 | 1 1 1 1 . . Scrap Searched 6 | . . 6 . . . Spaces Dug . | . . . . . . Terrain Destroyed 183 | . . 114 2 37 30 Melee . | . . . . . . Projectile 23 | . . . 2 . 21 AOE 160 | . . 114 . 37 9 Terrain Rammed . | . . . . . . Walls Destroyed . | . . . . . . Machines Disabled . | . . . . . . Actions | -11 -10 -10 -8 -7 -6 --------- Run | Yrd Mat Sub Mat Fac Fac Total 4934 | 64 1567 586 235 970 1512 Wait 719 | . 370 24 47 85 193 Move 3761 | 51 1108 521 149 809 1123 Hop . | . . . . . . Pick Up 79 | 6 20 6 11 15 21 Fast Attach 18 | 6 4 . 1 3 4 Attach 13 | . . . 4 2 7 Detach . | . . . . . . Swap 67 | . 6 8 7 17 29 Drop 77 | . 16 7 8 20 26 Fire 174 | 1 43 20 8 19 83 Melee . | . . . . . . Ram 4 | . . . . . 4 Kick . | . . . . . . Crush 22 | . . . . . 22 Escape Stasis . | . . . . . . Rewire . | . . . . . . Trap . | . . . . . . Miscellaneous . | . . . . . . Route ------- -11/Scrapyard -10/Materials (discovered 6 exits: [*Mat x3] / [*Min x2] / *Sub) -10/Subcaves -8/Materials -7/Factory (discovered 3 exits: *Fac / [*Sto] / [*Low]) -6/Factory (discovered 1 exit: [*Low]) History --------- Turn | Location | Event 52 | -11/Scrapyard | Discovered new exit (range 13) 99 | -11/Scrapyard | Entered Materials 314 | -10/Materials | Build established: Mutant 340 | -10/Materials | Discovered new exit (range 14) 461 | -10/Materials | Discovered new exit (range 6) 910 | -10/Materials | Discovered new exit (range 16) 998 | -10/Materials | Discovered new exit (range 16) 1165 | -10/Materials | Discovered new exit (range 6) 1842 | -10/Materials | Discovered new exit (range 12) 2412 | -10/Materials | Entered Subcaves 2836 | -10/Subcaves | Visited Clippyterm 2841 | -10/Subcaves | Learned location of Deep Caves (-6) 3047 | -10/Subcaves | Discovered new exit (range 11) 3351 | -10/Subcaves | Entered Materials 3351 | -8/Materials | Evolved 4 slots: Propulsion x2, Utility x1, Weapon x1 3362 | -8/Materials | Garrison activated, responded to threat 3481 | -8/Materials | Met 7R-MNS 3617 | -8/Materials | Discovered new exit (range 11) 3691 | -8/Materials | Entered Factory 3691 | -7/Factory | Evolved 2 slots: Utility x1, Weapon x1 3692 | -7/Factory | Caught up to 7R-MNS 3942 | -7/Factory | Crushed by falling debris 4218 | -7/Factory | Build established: Tank 4247 | -7/Factory | Discovered new exit (range 8) 4797 | -7/Factory | Discovered new exit (range 8) 5003 | -7/Factory | Fabricated Imp. Signal Interpreter (x2) 5174 | -7/Factory | Discovered new exit (range 4) 5179 | -7/Factory | Identified exit to Factory 5193 | -7/Factory | Entered another Factory area 5193 | -6/Factory | Evolved 2 slots: Utility x2 5194 | -6/Factory | Caught up to 7R-MNS 5507 | -6/Factory | Garrison activated, responded to threat 6042 | -6/Factory | Found Hvy. Reactive Plating 6046 | -6/Factory | Found Hvy. Reactive Plating 6329 | -6/Factory | Build established: Skirmisher 7385 | -6/Factory | Crushed by falling debris 7445 | -6/Factory | Discovered new exit (range 6) 7472 | -6/Factory | Lost 8 parts (2n2u4w) 7592 | -6/Factory | Core integrity fell below 50% 7618 | -6/Factory | Core integrity fell below 20% 7623 | -6/Factory | Destroyed by Y-54 Guardian with Gatling Laser Last Messages --------------- Acquired Imp. Medium Treads. K-01 Serf cleans the Manufacturing Mainframe. U-05 Engineer lays Concrete. K-01 Serf cleans the Manufacturing Mainframe. Imp. Medium Treads destroyed. K-01 Serf cleans the Terminal. Imp. Medium Treads destroyed. Slammed into Y-54 Guardian. K-01 Serf cleans the Terminal. VUUAY|NOQEQZKMKLC F TZCMA&=6Q3NVXBFMDZ Slammed into Y-54 Guardian. Fusion Compressor destroyed. Slammed into Y-54 Guardian. Adv. Assault Cannon destroyed. Imp. Sensor Array destroyed. Slammed into Y-54 Guardian. Imp. Medium Treads destroyed. Slammed into Y-54 Guardian. Map ----- +----------------------------------------------------+ | ?????????????????????????????????????????????????? | | ?????????????????????????????????????????????????? | | ?????????????????????????????????????????????????? | | ?????????????????????????????????????????????????? | | ?????????????????????????????????????????????????? | | ?????????????????????????????????????????????????? | | ?????????????????????????????????????????????????? | | ?????????????????????????????????????????????????? | | ?????????????????????????????????????????????????? | | ?????????????????????????????????????????????????? | | ??????????????????????? ? ?????????????????????? | | ??????????????????????? ? #???????????????????? | | ??????????????????????? ??????????????????? | | ??????????????????????? " ???????????????????? | | ??????????????????????? ????????????????????? | | ##????????????????????? [ ????????????????????? | | #????????????????????? t ?????????????????????? | | #######???????????????# #?????????????????????? | | ! #???????????????# #?????????????????????? | | = #???????????????# #?????????????????????? | | = #???????????????# #?????????????????????? | | !!!! #??????????????## ##?????"""""??????????? | | !!!%[ #?############## #?? ??????????? | | !!! #?# # ""???????????? | | [! #?# Y + ""?????????????? | | % ### ^ k @ #????????????????????? | | "## ^#######+## ggu #????????????????????? | | +######### #?# ### ###????????????????????? | | ### ] #?# #??????????????????????? | | + """" ### ###????????????????????? | | ### """" #! #????????????????????? | | /#############?# """" # u #????????????????????? | | * #????# """" + T #????????????????????? | | #????# # u #????????????????????? | | #????# """" # #????????????????????? | | """"""" #????# """" ### ###????????????????????? | | """"""" #????# """" #?# #??????????????????????? | | """"""" #????# """" #?# #??????????????????????? | | """"""" ! #????? #?# #??????????????????????? | | ###########????? #?# #??????????????????????? | | ???????????????? ? #?? #??????????????????????? | | #???????????????##??##??? #??????????????????????? | | ????????????????????????? #??????????????????????? | | ?????????????????????????+#??????????????????????? | | ?????????????????????????????????????????????????? | | ?????????????????????????????????????????????????? | | ?????????????????????????????????????????????????? | | ?????????????????????????????????????????????????? | | ?????????????????????????????????????????????????? | | ?????????????????????????????????????????????????? | +----------------------------------------------------+ Best States ------------- Heat Dissipation 64 Energy Generation 25 Energy Capacity 300 Matter Stores 300 Matter Capacity 550 Sight Range 16 Robot Scan Range 15 Terrain Scan Density 10 Armor Coverage 600 Resistance: KI 40 Evasion (%) 40 Recoil Reduction 4 Item Schematics ----------------- Imp. Signal Interpreter | -7/Factory | Scanalyzed Robot Schematics ------------------ None Fabricated ------------ Imp. Signal Interpreter | x2 | -7/Factory Repaired ---------- Nothing Alien Tech Used ----------------- None Achievements -------------- I Spy Challenges ------------ None Game ------ Seed LightCryofiberFirepult Manual? 0 Play Time 01:36:11 Cumulative 21.1 hours Start 2025.06.22 @ 09:59:23 End 2025.07.25 @ 22:34:13 Sessions 3 Manual Loads 0 Difficulty Rogue Special Mode None Game No. 21 Rogue 21 Adventurer 0 Explorer 0 Win Type - Total 0 Types 0/0/0/0/0/0/0/0/0/0 Lore% 12 Gallery% 16 Achievement% 17 Wizard Run 0 Options --------- Layout 1 ASCII 0 Keyboard 0 Movement Mouse Keybinds 0 Fullscreen 1 Font 24/Smallcaps Map View 50x35 Zoom Use 0% Tactical HUD 0 Map Filters NONE Filters NONE Steam 1 RUN: 5aaeda97-bd89-4f33-bc61-eda7ba28cba6